Cogmind - Beta 11.1 @@@ ROGUE MODE // 2022.06.14 @ 15:07:24 Player: ChromeKnight Result: Self-destructed Performance ------------- Evolutions (1) 500 Regions Visited (3) 600 Robots Destroyed (45) 225 Value Destroyed (815) 815 Prototype IDs (2) 40 Alien Tech Used (0) 0 Bonus (49) 49 TOTAL SCORE: 2229 Bonus ------- Follower Combat Kills 49 Cogmind --------- Core Integrity 330/400 Matter 300/300 Energy 240/240 System Corruption 0% Temperature Cool (0) Movement Treading (160) Location -9/Materials Parts ------- > --- POWER (1) -------- Nuclear Core > --- PROPULSION (2) --- Light Treads Light Treads > --- UTILITY (4) ------ Medium Storage Unit Visual Processing Unit Targeting Computer > --- WEAPON (2) ------- Improved Assault Rifle Improved Assault Rifle > --- INVENTORY (10) --- Light Treads Light Treads Light Treads Improved Flight Unit Improved Flight Unit Cooling System Heavy EM Pulse Gun Heavy EM Pulse Gun Heavy Assault Rifle Datajack Peak State ------------ > --- POWER ------------ Nuclear Core > --- PROPULSION ------- Light Treads Improved Flight Unit > --- UTILITY ---------- Medium Storage Unit Visual Processing Unit Targeting Computer > --- WEAPON ----------- Improved Assault Rifle Improved Assault Rifle > --- INVENTORY -------- Light Treads Light Treads Light Treads Cooling System Heavy EM Pulse Gun Heavy EM Pulse Gun Light Assault Rifle Light Assault Rifle Heavy Assault Rifle Datajack [Rating: 18] Favorites ----------- Power Light Ion Engine Engine Light Ion Engine Power Core Nuclear Core Propulsion Light Treads Treads Light Treads Flight Unit Improved Flight Unit Utility Medium Storage Unit Storage Medium Storage Unit Processor Targeting Computer Weapon Improved Assault Rifle Ballistic Gun Improved Assault Rifle Build | -11 -10 -10 -9 ------- Run | Scr Mat Min Mat Slots Evolved 2 | . . . 2 Power . | . . . . Propulsion . | . . . . Utility 2 | . . . 2 Weapon . | . . . . Parts Attached 36 | 6 20 3 7 Power 10 | 1 5 3 1 Engine 9 | 1 5 3 . Core 1 | . . . 1 Reactor . | . . . . Propulsion 11 | 2 4 . 5 Treads 10 | 2 4 . 4 Leg . | . . . . Wheel . | . . . . Hover . | . . . . Flight 1 | . . . 1 Utility 5 | 1 3 . 1 Device . | . . . . Storage 3 | 1 2 . . Processor 2 | . 1 . 1 Hackware . | . . . . Protection . | . . . . Artifact . | . . . . Weapon 10 | 2 8 . . Energy Gun . | . . . . Energy Cannon . | . . . . Ballistic Gun 10 | 2 8 . . Ballistic Cannon . | . . . . Launcher . | . . . . Special Weapon . | . . . . Impact Weapon . | . . . . Slashing Weapon . | . . . . Piercing Weapon . | . . . . Special Melee Weapon . | . . . . Unidentified Prototypes 2 | . 1 . 1 Parts Lost 1 | . . . 1 Power 1 | . . . 1 Propulsion . | . . . . Utility . | . . . . Weapon . | . . . . Highest Loss Streak 1 | . . . 1 To Critical Strikes . | . . . . Average Slot Usage (%) 90 | . 86 100 78 Engine 12 | . 13 14 7 Treads 26 | . 27 28 21 Storage 13 | . 14 14 11 Processor 9 | . 3 14 14 Ballistic Gun 26 | . 27 28 22 Naked Turns . | . . . . Heaviest Build 25 | 11 19 25 25 Greatest Support 40 | 40 40 40 40 Greatest Overweight (x) 4 | 1 4 . 1 Average Overweight (x) . | . . . . Largest Inventory Capacity 10 | 8 10 10 10 Average Capacity 9 | 7 8 10 10 Most Carried 10 | . 10 10 10 Average Carried 8 | . 6 10 9 Final Capacity 10 | 8 10 10 10 Final Carried 10 | . 10 10 10 Class Distribution -------------------- 56% | Scavenger-Mutant 43% | Mutant Dominant Class ---------------- Mutant | -10/Materials Scavenger-Mutant | -10/Mines Scavenger-Mutant | -9/Materials Resources | -11 -10 -10 -9 ----------- Run | Scr Mat Min Mat Matter Collected 1098 | 211 253 300 334 Remotely . | . . . . Salvage Created 1360 | . 351 294 715 Parts 90 | . 31 25 34 Haulers Intercepted 3 | . 2 . 1 Recyclers Shooed 3 | . 1 1 1 Parts Field Recycled . | . . . . Retrieved Matter . | . . . . Parts Self-Destructed . | . . . . Prevented . | . . . . Kills | -11 -10 -10 -9 ------- Run | Scr Mat Min Mat Combat Hostiles Destroyed 31 | . 10 8 13 Guns 31 | . 10 8 13 Classes Destroyed 9 | . 6 1 2 Worker 5 | . 1 2 2 Tunneler 1 | . . 1 . Hauler 3 | . 2 . 1 Recycler 2 | . . . 2 Operator 1 | . 1 . . Watcher 2 | . 1 . 1 Swarmer 16 | . 8 4 4 Grunt 11 | . 2 4 5 Sentry 4 | . . . 4 Best Kill Streak 5 | . 5 3 5 Combat Bots Only 5 | . 4 3 5 Max Kills in Single Turn 1 | . 1 1 1 Gunslinging . | . . . . Exploded . | . . . . Melee . | . . . . Uniques/NPCs Destroyed . | . . . . Combat | -11 -10 -10 -9 -------- Run | Scr Mat Min Mat Damage Taken 1088 | . 299 280 509 Core 152 | . 24 58 70 Absorbed by Shields . | . . . . Core Remaining (%) 83 | 100 . 67 . Volleys Fired 101 | . 32 26 43 Largest 2 | . 2 2 2 Hottest 46 | . 40 46 46 Shots Fired 202 | . 64 52 86 Gun 202 | . 64 52 86 Cannon . | . . . . Launcher . | . . . . Special . | . . . . Kinetic 202 | . 64 52 86 Thermal . | . . . . Explosive . | . . . . Electromagnetic . | . . . . Robot Hit Streak 22 | . 9 17 22 Robot Miss Streak 5 | . 3 2 5 Penetration Max . | . . . . Secondary Targets 6 | . 3 1 2 Max Gunslinging Chain 1 | . 1 1 1 Shots Hit Robots 137 | . 37 42 58 Core Hits 66 | . 20 18 28 Critical Kills 1 | . . 1 . Critical Parts Destroyed 1 | . . . 1 Critical Strikes 2 | . . 1 1 Destroy 2 | . . 1 1 Melee Attacks . | . . . . Impact . | . . . . Slashing . | . . . . Piercing . | . . . . Sneak Attacks . | . . . . Combat Hostiles . | . . . . Follow-up Attacks . | . . . . Damage Inflicted 1905 | . 403 643 859 Guns 1905 | . 403 643 859 Cannons . | . . . . Explosions . | . . . . Melee . | . . . . Ramming . | . . . . Kinetic 1905 | . 403 643 859 Thermal . | . . . . Explosive . | . . . . Electromagnetic . | . . . . Impact . | . . . . Slashing . | . . . . Piercing . | . . . . Highest Corruption . | . . . . Average Corruption . | . . . . Corruption Purged . | . . . . Corruption Blocked . | . . . . Overload Shots . | . . . . Overflow Damage . | . . . . Projectiles . | . . . . Explosions . | . . . . Melee . | . . . . Knockbacks . | . . . . Impact . | . . . . Kinetic . | . . . . Secondary . | . . . . Self-Inflicted Damage . | . . . . Shots . | . . . . Rammed . | . . . . Targets Rammed . | . . . . Kicked . | . . . . Crushed . | . . . . Highest Temperature 21 | . 6 18 21 Average Temperature 8 | . 6 8 10 Received Heat Transfer 315 | . 24 81 210 Siege Activations . | . . . . Robots Corrupted . | . . . . Combat Hostiles . | . . . . Parts Fried . | . . . . Impact Corruptions . | . . . . Robots Melted . | . . . . Combat Hostiles . | . . . . Parts Melted . | . . . . Heat Transferred . | . . . . Parts Sabotaged . | . . . . Parts Stolen . | . . . . Parts Stripped . | . . . . Power Chain Reactions . | . . . . Missiles Intercepted . | . . . . Alert | -11 -10 -10 -9 ------- Run | Scr Mat Min Mat Peak Influence 389 | . 276 143 389 Initial 11 | . . . 11 Average 122 | . 123 88 193 Maximum Alert Level 1 | . 1 . 1 Low Security (%) 80 | 100 81 100 45 Level 1 19 | . 18 . 54 Level 2 . | . . . . Level 3 . | . . . . Level 4 . | . . . . Level 5 . | . . . . High Security . | . . . . Max Security . | . . . . Squads Dispatched 3 | . 1 . 2 Investigation 1 | . 1 . . Extermination . | . . . . Reinforcement 2 | . . . 2 Assault . | . . . . Garrison . | . . . . Intercept . | . . . . Searches Triggered . | . . . . Construction Impeded . | . . . . Haulers Reinforced . | . . . . Active Scanning Responses . | . . . . Cargo Convoy Interrupts . | . . . . Stealth | -11 -10 -10 -9 --------- Run | Scr Mat Min Mat Distress Signals 3 | . 1 . 2 Communications Jammed . | . . . . Distress Signals . | . . . . Times Spotted 55 | . 20 17 18 Peak Tracking Total 7 | . 7 5 6 Tactical Retreats 1 | . . 1 . Traps | -11 -10 -10 -9 ------- Run | Scr Mat Min Mat Traps Triggered 3 | . 3 . . Indirectly . | . . . . Trap Hack Attempts . | . . . . Triggered . | . . . . Disarmed . | . . . . Reprogrammed . | . . . . Reused . | . . . . Traps Extracted . | . . . . Installed . | . . . . Triggered . | . . . . Machines | -11 -10 -10 -9 ---------- Run | Scr Mat Min Mat Machines Disabled 1 | . . . 1 Max in Single Turn 1 | . . . 1 Machines Sabotaged . | . . . . Garrisons Compromised . | . . . . Overloaded Fab Kills . | . . . . Hacking | -11 -10 -10 -9 --------- Run | Scr Mat Min Mat Machines Accessed 5 | . 4 . 1 Terminals 5 | . 4 . 1 Fabricators . | . . . . Repair Stations . | . . . . Recycling Units . | . . . . Scanalyzers . | . . . . Garrison Access . | . . . . Total Hacks 15 | . 11 . 4 Successful 10 | . 7 . 3 Failed 5 | . 4 . 1 Catastrophic . | . . . . Database Lockouts . | . . . . Manual 14 | . 11 . 3 Terminals 15 | . 11 . 4 Fabricators . | . . . . Repair Stations . | . . . . Recycling Units . | . . . . Scanalyzers . | . . . . Garrison Access . | . . . . Terminal Hacks 2 | . 1 . 1 Locate Traps 1 | . 1 . . Zone Layout 1 | . . . 1 Fabricator Hacks . | . . . . Repair Station Hacks . | . . . . Recycling Unit Hacks . | . . . . Scanalyzer . | . . . . Garrison Access Hacks . | . . . . Unauthorized Hacks 8 | . 6 . 2 Terminals 8 | . 6 . 2 Botnet 5 | . 4 . 1 Operators 3 | . 2 . 1 Fabricators . | . . . . Repair Stations . | . . . . Recycling Units . | . . . . Scanalyzers . | . . . . Garrison Access . | . . . . Data Cores Recovered . | . . . . Used . | . . . . Hacking Detections 4 | . 3 . 1 Full Trace Events 1 | . 1 . . Feedback Events . | . . . . Feedback Blocked . | . . . . Robot Schematics Acquired . | . . . . Robots Built . | . . . . Authchips . | . . . . Time . | . . . . Total Robot Build Rating . | . . . . Part Schematics Acquired . | . . . . Parts Built . | . . . . Authchips . | . . . . Time . | . . . . Total Part Build Rating . | . . . . Parts Repaired . | . . . . Time . | . . . . Parts Recycled . | . . . . Recycled Matter . | . . . . Retrieved Matter . | . . . . Retrieved Components . | . . . . Parts Scanalyzed . | . . . . Part Schematics Acquired . | . . . . Parts Damaged . | . . . . Bothacking | -11 -10 -10 -9 ------------ Run | Scr Mat Min Mat Used RIF Installer . | . . . . Robots Hacked . | . . . . Non-combat . | . . . . Combat . | . . . . Robot Hacks Applied . | . . . . Relay Couplers Released . | . . . . Fabnet Peak Effective % . | . . . . Robots Rewired . | . . . . Allies Hacked . | . . . . Hacks Repelled . | . . . . Allies | -11 -10 -10 -9 -------- Run | Scr Mat Min Mat Total Allies 1 | . . 1 . Largest Group 1 | . . 1 . Highest-Rated Group 31 | . . 31 . Highest-Rated Ally 31 | . . 31 . Total Orders . | . . . . Ally Attacks 10 | . . 10 . Total Damage 144 | . . 144 . Kills 3 | . . 3 . Allies Corrupted . | . . . . Allies Melted . | . . . . Intel | -11 -10 -10 -9 ------- Run | Scr Mat Min Mat Robot Analysis Total . | . . . . Derelict Logs Recovered 3 | . . 3 . Drone Launches . | . . . . Drone Recoveries . | . . . . Exploration | -11 -10 -10 -9 ------------- Run | Scr Mat Min Mat Turns Passed 2284 | 70 837 853 524 Spaces Moved 1171 | 41 434 478 218 Core 6 | 4 2 . . Treads 1165 | 37 432 478 218 Legs . | . . . . Wheels . | . . . . Hover . | . . . . Flight . | . . . . Fastest Speed 50 | 50 160 160 160 Average Speed 159 | 151 160 160 160 Slowest Speed 250 | 160 250 160 240 Overloaded Moves . | . . . . Propulsion Burnouts . | . . . . Robots Hopped . | . . . . Cave-ins Triggered . | . . . . Exploration Rate (%) 43 | 3 65 88 17 Regions Visited 3 Branch Regions 1 Pre-discovered Areas 1 | . . 1 . Known Exits Taken . | . . . . Unknown Exits Taken 3 | 1 1 1 . Scrap Searched 1 | . . 1 . Spaces Dug . | . . . . Terrain Destroyed . | . . . . Melee . | . . . . Projectile . | . . . . AOE . | . . . . Terrain Rammed . | . . . . Walls Destroyed . | . . . . Machines Disabled . | . . . . Actions | -11 -10 -10 -9 --------- Run | Scr Mat Min Mat Total 1389 | 46 518 515 310 Wait 40 | . 5 6 29 Move 1168 | 40 433 477 218 Hop . | . . . . Pick Up 18 | . 14 . 4 Fast Attach 23 | 6 12 1 4 Attach . | . . . . Detach . | . . . . Swap 13 | . 8 2 3 Drop 26 | . 14 3 9 Fire 101 | . 32 26 43 Melee . | . . . . Ram . | . . . . Kick . | . . . . Crush . | . . . . Escape Stasis . | . . . . Rewire . | . . . . Trap . | . . . . Miscellaneous . | . . . . Route ------- -11/Scrapyard -10/Materials (discovered 3 exits: *Mat x2 / [*Min]) -10/Mines -9/Materials (discovered 5 exits: Mat x3 / Min x2) History --------- Turn | Location | Event 12 | -11/Scrapyard | Discovered new exit (range 15) 71 | -11/Scrapyard | Entered Materials 257 | -10/Materials | Discovered new exit (range 15) 300 | -10/Materials | Build established: Mutant 538 | -10/Materials | Discovered new exit (range 14) 773 | -10/Materials | Discovered new exit (range 13) 908 | -10/Materials | Entered Mines 1169 | -10/Mines | Received a Mining Laser from a helpful Derelict 1240 | -10/Mines | Build established: Scavenger-Mutant 1270 | -10/Mines | Learned 8 Materials zone layouts 1278 | -10/Mines | Learned 4 Materials zone layouts 1701 | -10/Mines | Discovered new exit (range 10) 1735 | -10/Mines | Learned location of Zion (-7) 1761 | -10/Mines | Entered Materials 1761 | -9/Materials | Evolved 2 slots: Utility x2 1762 | -9/Materials | Identified exit to Materials 1762 | -9/Materials | Identified exit to Mines 2285 | -9/Materials | Self-destructed Last Messages --------------- 02199_ R-06 Scavenger destroyed. 02205_ A-02 Transporter destroyed. 02211_ Acquired 28 matter. 02216_ Dropped Lgt. Treads. 02216_ Acquired Prototype Flight Unit. 02216_ Identified Imp. Flight Unit. 02218_ Dropped Imp. Flight Unit. 02220_ Acquired Lgt. Treads. 02224_ Dropped Lgt. Assault Rifle. 02225_ Acquired Imp. Flight Unit. 02229_ Acquired 17 matter. 02234_ Acquired Imp. Flight Unit. 02236_ Acquired 3 matter. 02258_ W-16 Scout sends out distress signal. 02264_ ALERT: Hostiles spotted, dispatching reinforcements to Terminal M011. 02278_ Critical hit (Burn: +37). 02278_ Y-45 Defender destroyed. 02278_ Electrolysis Chamber disabled. 02281_ Acquired 36 matter. Map ----- +----------------------------------------------------+ | | | ??????????????????????????????????################ | | ?????###########??????????????????# # | | ?????# #??????????????????#"S """"" # | | ?????# #??????????????????#""" """"" # | | ###### """ """ #??????????????????# "" """"" # | | + """ """ #?????##########???# = # | | # """ """ #?????# #???# %*= ## | | # #?????# """ #???#####+####+####? | | + #?????# """ #???????# ## ### | | o##### #?????#* """ #########=## | | #???#######+###?????# [ + %! !%= = % [ | | #??????# ? ] # """ ############ % | | #??????# < ? / """ ## # %### | | #??????# ? # """ ## ## ##?? | | #???#######+###?????# =[= ## ## #??? | | #???# #?????######+#### ## #??? | | ##### """ """ #??????????#%##########+#### =!#### | | + """ """ #??????????#*# + #?##!%!## * | | ##### """ """ #??????????# # # #?# * | | #???# """ """ #??????????# # # % ### * | | #???# #??????????# # # ]] ]] T * | | #???# #???######## + #%###### [ ! | | #???# #???# T # ####### ##???#[ ! | | #???###########???# # ###### #???######### | | #########?????#???# """@/ #???????????? | | ## #?????# #?# """%# ### #???????????? | | ## """ #?????# #?# "" !# #?##+######???????? | | ## """ #?????# #?# !# #??# #???????? | | ## """ #?????#o#?##### ## #??# "" #???????? | | ## #?????# #?????#### #### """ #???##### | | ## #?????# #????????# + S" #???# | | #####+###### ## ############# # #???# | | # #???# # #???# | | # #???# ############ | | """" # ##### #?# # "" | | """" ###+#### """ # ### ## "T | | """" # # """"" # + ## "" | | # """ # """"" + # ## | | # """ # """"" # # ###### | | """" # """ # """ # # # | | """" # # # "Y" # # | | """" # # # """ # + "" | | ######## # # # "" | | #??????######### # ##o "" | | #??????????????###### ## #" | | " #######?????????????# ##########T | | T # #?????????????# ##"""""""#" | | " #????########## ##" " "## | | #????# ##" "## | +----------------------------------------------------+ Best States ------------- Heat Dissipation 28 Energy Generation 18 Energy Capacity 250 Matter Stores 300 Matter Capacity 300 Sight Range 18 Terrain Scan Density 10 Evasion (%) 40 Targeting Accuracy 5 Recoil Reduction 2 Item Schematics ----------------- None Robot Schematics ------------------ None Fabricated ------------ Nothing Alien Tech Used ----------------- None Achievements -------------- None Challenges ------------ None Game ------ Seed DisruptorSchematicInverter Manual? 0 Play Time 00:13:44 Cumulative 331.0 hours Start 2022.06.14 @ 12:21:17 End 2022.06.14 @ 15:07:24 Sessions 3 Manual Loads 0 Difficulty Rogue Special Mode None Game No. 588 Rogue 433 Adventurer 148 Explorer 7 Win Type - Total 11 Types 9/0/1/1/0/0/0/0/0 Lore% 74 Gallery% 87 Achievement% 67 Wizard Run 0 Options --------- ASCII 0 Keyboard 0 Movement Numpad Keybinds 0 Fullscreen 1 Font 18/SmallcapsGlow Map View 76x50 Tactical HUD 1 Map Filters NONE Filters NONE Steam 1 RUN: fe537793-2592-4c1e-8f17-7ecc5ebba28d